[Event "1000GM 0003 GM Norm 2022"]
[Site "Saint Louis"]
[Date "2022.09.21"]
[Round "1.1"]
[White "Chandra, Akshat"]
[Black "Raja Harshit"]
[Result "0-1"]
[ECO "B51"]
[WhiteElo "2471"]
[BlackElo "2459"]
[Annotator "TA"]
[PlyCount "82"]
[EventDate "2022.09.21"]
[EventType "tourn"]
[EventCountry "USA"]
[SourceTitle "playchess.com"]
[Source "ChessBase"]
[SourceQuality "1"]
[TimeControl "5400+30"]

{[%evp 9,82,15,24,0,9,0,1,0,0,0,21,0,20,6,16,17,17,12,21,4,4,22,58,45,57,50,91,0,0,-92,-71,-79,-95,-87,-100,-82,-47,-35,-37,-44,-72,-51,-50,-195,-195,-201,-195,-270,-277,-388,-371,-361,-322,-552,-364,-374,-366,-377,-376,-368,-373,-350,-350,-597,-586,-587,-550,-545,-531,-772,-772,-1299,-1322,-1189,-1083]} 1. e4 {[%emt 0:00:03]} c5 {[%emt 0:00:25]} 2. Nf3 {[%emt 0:00:05]} d6 {[%emt 0:00:36]} 3. Bb5+ {[%emt 0:00:15]} Nd7 {[%emt 0:00:15]} 4. Ba4 {[%emt 0:00:11]} Ngf6 {[%emt 0:02:12]} 5. O-O {[%emt 0:00:07]} e6 {[%emt 0:01:51]} 6. d3 {[%emt 0:00:50] B51: Sicilian: Moscow Variation (3 Bb5+) without 3...Bd7.} Be7 {[%emt 0:02:50]} 7. c4 {[%emt 0:00:50]} O-O {[%emt 0:00:47]} 8. Nc3 {[%emt 0:00:04] The position is equal.} a6 {[%emt 0:03:13]} 9. Qe2 {[%emt 0:03:13] [#]} Rb8 $146 {[%emt 0:02:25]} ({Predecessor:} 9... Qc7 10. Nd2 Ne5 11. f4 Nc6 12. Bxc6 Qxc6 13. a4 Bd7 14. Nf3 Qc7 15. e5 Ng4 {½-½ (27) Jones,G (2672)-Keymer,V (2655) Germany 2022}) 10. Nd2 {[%emt 0:09:19]} b5 {[%emt 0:13:37]} 11. cxb5 {[%emt 0:04:38]} d5 {[%emt 0:02:10]} 12. e5 {[%emt 0:13:03]} Ne8 {[%emt 0:00:18]} 13. bxa6 {[%emt 0:02:03]} Bxa6 {[%emt 0:00:29]} 14. Nf3 {[%emt 0:02:51]} Nc7 {[%emt 0:06:28]} 15. Rd1 {[%emt 0:05:51]} Rb4 {[%emt 0:05:17]} 16. b3 {[%emt 0:07:50]} Nb6 {[%emt 0:05:39]} 17. Bc6 {[%emt 0:15:50]} f6 {[%emt 0:05:52] [#]} 18. Rb1 {[%emt 0:12:26]} (18. a3 $1 $16 {[%cal Ra3b4]} Rxb3 19. Qc2) 18... fxe5 $1 $11 {[%emt 0:07:27]} 19. a3 {[%emt 0:01:32] [#]} (19. Qxe5 $11 {keeps the balance.} Nc8 20. a3) 19... e4 $1 $17 {[%emt 0:15:09]} 20. axb4 {[%emt 0:00:51]} exf3 {[%emt 0:00:05]} 21. gxf3 {[%emt 0:02:53] Hoping for b5.} cxb4 {[%emt 0:00:03]} 22. Na4 {[%emt 0:00:09]} Qd6 {[%emt 0:08:00]} 23. Bb2 $1 {[%emt 0:15:13] Threatens to win with Qe5.} Qxc6 {[%emt 0:05:44]} 24. Rbc1 {[%emt 0:00:04] [#]} Nc4 $1 {[%emt 0:00:30]} 25. dxc4 {[%emt 0:00:07]} dxc4 {[%emt 0:01:06]} 26. Be5 {[%emt 0:01:09] Now White is beyond hope.} (26. Qe4 $15 Qxe4 27. fxe4) 26... c3 $19 {[%emt 0:01:39][%mdl 1024] Black has strong compensation.} 27. Qe4 {[%emt 0:00:04] [#]} Nd5 $1 {[%emt 0:00:14]} 28. h3 {[%emt 0:02:02]} (28. Bxc3 $142 bxc3 29. Nxc3) 28... Bb7 {[%emt 0:00:52]} 29. Kh2 {[%emt 0:00:20]} (29. Ra1 {was called for.}) 29... Rf5 {[%emt 0:02:02][%cal Of5e5] And now ...Rxe5! would win.} 30. Bg3 {[%emt 0:00:07]} h5 {[%emt 0:02:31][%cal Oh5h4] Strongly threatening ...h4!} 31. Rg1 $2 {[%emt 0:01:24]} (31. h4) 31... Nf6 {[%emt 0:00:49][%csl LRe4,LRf3]} 32. Qxc6 {[%emt 0:00:28]} Bxc6 {[%emt 0:00:01] This bishop pair is nice.} 33. Nxc3 {[%emt 0:00:35]} bxc3 {[%emt 0:00:06]} 34. Rxc3 {[%emt 0:00:01]} Bxf3 {[%emt 0:00:06]} 35. Rc7 {[%emt 0:00:56]} Nd5 {[%emt 0:00:26]} 36. Rd7 {[%emt 0:00:04]} (36. Rc4) 36... h4 {[%emt 0:00:57] Black is clearly winning.} 37. Bd6 {[%emt 0:00:08]} Bf6 {[%emt 0:00:32]} 38. Re1 {[%emt 0:01:21]} e5 {[%emt 0:01:24][%cal Be6e5,Be5e4][%mdl 32]} 39. b4 {[%emt 0:00:19]} e4 {[%emt 0:01:14]} 40. Rg1 {[%emt 0:00:41] [#]} Nxb4 $1 {[%emt 0:00:25][%mdl 512]} 41. Rb1 {[%emt 0:00:31]} (41. Rg6 Rd5) 41... Nd3 {[%emt 0:00:25] Weighted Error Value: White=0.57/Black=0.14 (very precise)} 0-1

[Event "1000GM 0003 GM Norm 2022"]
[Site "Saint Louis"]
[Date "2022.09.21"]
[Round "1.2"]
[White "Kretchetov, Alexandre"]
[Black "Kaliksteyn, Alexander"]
[Result "1/2-1/2"]
[ECO "D45"]
[WhiteElo "2144"]
[BlackElo "2393"]
[Annotator "TA"]
[PlyCount "55"]
[EventDate "2022.09.21"]
[EventType "tourn"]
[EventCountry "USA"]
[SourceTitle "playchess.com"]
[Source "ChessBase"]
[SourceQuality "1"]
[TimeControl "5400+30"]

{[%evp 23,55,16,10,10,11,11,9,8,11,12,12,7,17,17,7,12,0,0,14,6,28,10,20,0,0,0,0,0,0,0,0,-6,0,0]} 1. Nf3 {[%emt 0:00:06]} d5 {[%emt 0:00:14]} 2. d4 {[%emt 0:00:26]} Nf6 {[%emt 0:00:13]} 3. c4 {[%emt 0:00:03]} e6 {[%emt 0:00:13][%cal Be7e6,Be6e5][%mdl 32]} 4. Nc3 {[%emt 0:00:13]} c6 {[%emt 0:00:19]} 5. e3 {[%emt 0:01:05]} Nbd7 {[%emt 0:00:09]} 6. Qc2 {[%emt 0:00:05]} Bd6 {[%emt 0:00:15]} 7. b3 {[%emt 0:00:09]} O-O {[%emt 0:02:21]} 8. Be2 {[%emt 0:00:08]} e5 {[%emt 0:01:04]} 9. cxd5 {[%emt 0:00:38]} cxd5 {[%emt 0:00:41]} 10. Nb5 {[%emt 0:00:17]} Bb4+ {[%emt 0:00:31]} 11. Bd2 {[%emt 0:00:05]} Bxd2+ {[%emt 0:01:18]} 12. Nxd2 {[%emt 0:00:07]} a6 {[%emt 0:00:23]} 13. dxe5 {[%emt 0:00:07] D45: Semi-Slav: 5 e3.} Nxe5 {[%emt 0:00:18]} 14. Nd4 {[%emt 0:00:05]} Bg4 {[%emt 0:01:01]} 15. Bxg4 {[%emt 0:02:42]} Nfxg4 {[%emt 0:00:15]} 16. O-O {[%emt 0:01:07]} Rc8 {[%emt 0:02:40]} ({Don't do} 16... Qh4 17. h3 Nf6 18. Qc7 $16) 17. Qf5 {[%emt 0:02:19] [#] Black must now prevent h3.} g6 {[%emt 0:06:41]} (17... Qh4 $2 18. h3 $18) 18. Qf4 {[%emt 0:02:37] h3 is the strong threat.} Qe7 {[%emt 0:00:29]} 19. h3 {[%emt 0:04:23]} Nf6 {[%emt 0:01:37] [#]} 20. Rfd1 $146 {[%emt 0:00:21]} ({Predecessor:} 20. N2f3 Nxf3+ 21. Qxf3 Ne4 22. Rfc1 Qe5 23. Qe2 Rc7 24. Rc2 Rfc8 25. Rac1 Rxc2 26. Rxc2 {1-0 (75) Martynov,R (2196)-Volodin,A (2401) Tallinn 2019}) 20... Rfd8 {[%emt 0:25:23][%cal Bf8d8,Bd8d7,Bd7c7,Bc7c2][%mdl 32]} (20... Nh5 $5 21. Qh2 $8 f5 $11) 21. Qh4 {[%emt 0:03:38]} Rd7 {[%emt 0:06:01]} 22. N2f3 {[%emt 0:10:57]} Rdc7 {[%emt 0:05:33] The position is equal.} 23. Nxe5 {[%emt 0:00:52]} Qxe5 {[%emt 0:00:05]} 24. Nf3 {[%emt 0:00:11]} Qe7 {[%emt 0:11:24]} 25. Qg5 {[%emt 0:08:57]} Rc2 {[%emt 0:03:19][%cal Oc2f2]} 26. Qh4 {[%emt 0:07:28]} R2c7 {[%emt 0:11:38]} 27. Rd3 {[%emt 0:01:56]} Rc1+ {[%emt 0:00:34]} 28. Rd1 {[%emt 0:00:24] An even fight not without its subleties.  Weighted Error Value: White=0.03 (flawless) /Black=0.04 (flawless)} 1/2-1/2

[Event "1000GM 0003 GM Norm 2022"]
[Site "Saint Louis"]
[Date "2022.09.21"]
[Round "1.3"]
[White "Mardov, Dimitar"]
[Black "Antipov, Mikhail Al."]
[Result "0-1"]
[ECO "D38"]
[WhiteElo "2414"]
[BlackElo "2603"]
[Annotator "TA"]
[PlyCount "54"]
[EventDate "2022.09.21"]
[EventType "tourn"]
[EventCountry "USA"]
[SourceTitle "playchess.com"]
[Source "ChessBase"]
[SourceQuality "1"]
[TimeControl "5400+30"]

{[%evp 11,54,2,7,10,21,0,7,14,27,23,22,0,-6,-1,0,3,0,-7,-8,-96,-91,-87,-106,-104,-114,-241,-227,-237,-229,-183,-187,-264,-231,-291,-284,-349,-373,-361,-352,-410,-383,-29993,-29994,-29995,-29996]} 1. d4 {[%emt 0:00:07]} Nf6 {[%emt 0:00:30]} 2. c4 {[%emt 0:00:32]} e6 {[%emt 0:00:03]} 3. Nf3 {[%emt 0:00:24]} d5 {[%emt 0:00:04]} 4. Nc3 {[%emt 0:00:20]} Bb4 {[%emt 0:00:04]} 5. Qa4+ {[%emt 0:01:39]} Nc6 {[%emt 0:00:05]} 6. e3 {[%emt 0:00:12]} O-O {[%emt 0:00:06]} 7. Qc2 $1 {[%emt 0:01:11] D38: Queen's Gambit Declined: Ragozin Defence (4 Nf3 Bb4).} Re8 {[%emt 0:02:17]} 8. Bd2 {[%emt 0:02:19]} Bf8 {[%emt 0:01:24]} 9. Be2 {[%emt 0:03:51] The position is equal.} a6 $5 {[%emt 0:04:24][%mdl 4] A promising side line.} 10. a3 {[%emt 0:05:37]} h6 {[%emt 0:02:05]} 11. h3 {[%emt 0:01:38]} dxc4 {[%emt 0:02:24]} 12. Bxc4 {[%emt 0:01:06] [#]} e5 $146 {[%emt 0:05:37]} ({Predecessor:} 12... b5 13. Bd3 Bb7 14. Ne4 e5 15. Nxf6+ Qxf6 16. d5 Ne7 17. Qxc7 Bxd5 18. Qxe5 Qxe5 19. Nxe5 Bxg2 {1-0 (39) Yakubboev,N (2621)-Kobo,O (2498) Chess.com INT 2021}) 13. dxe5 {[%emt 0:08:13]} (13. Qg6 $2 Be6 14. Bxe6 Rxe6 $19) 13... Nxe5 {[%emt 0:00:43]} 14. Nxe5 {[%emt 0:02:32]} Rxe5 {[%emt 0:00:03]} 15. f4 {[%emt 0:05:55]} (15. Bd3 $11 {keeps the balance.}) 15... Bf5 $17 {[%emt 0:02:10]} 16. Qb3 {[%emt 0:02:53]} Re7 {[%emt 0:04:17]} 17. g4 {[%emt 0:08:31]} Ne4 {[%emt 0:03:38]} 18. O-O-O {[%emt 0:06:13] This move loses the game for White.} (18. Qc2 $17 {was necessary.} Nxd2 19. Qxd2) 18... Nc5 $19 {[%emt 0:01:06]} 19. Qa2 {[%emt 0:02:10]} ({Much weaker is} 19. Qb4 {[#]} Rd7 $1 20. gxf5 Nd3+ 21. Bxd3 Bxb4 $19) 19... Nd3+ {[%emt 0:04:42]} 20. Bxd3 {[%emt 0:00:20]} Bxd3 {[%emt 0:00:02]} 21. f5 {[%emt 0:03:58]} (21. e4 $142) 21... Qe8 {[%emt 0:10:25] White must now prevent ...Rd8.} 22. h4 {[%emt 0:08:57]} Rd8 {[%emt 0:00:51]} 23. f6 {[%emt 0:07:59]} Re5 {[%emt 0:05:32]} ({Wrong is} 23... gxf6 $2 24. g5) 24. g5 {[%emt 0:02:57]} Rc5 {[%emt 0:01:08]} ({Not} 24... hxg5 $2 25. hxg5 Rxg5 26. e4 $19) 25. Qb3 {[%emt 0:03:43]} Bh7 {[%emt 0:02:22] Prevents e4. ( -> ...Qe4). This bishop pair is nice.} 26. Qb4 {[%emt 0:05:19] [#]} (26. g6 $19 Bxg6 27. h5 Bxh5 28. Rdg1) 26... Rxc3+ $1 {[%emt 0:00:40][%mdl 512]} 27. Qxc3 {[%emt 0:00:28]} (27. bxc3 Bxb4) 27... Qe4 {[%emt 0:00:04] Weighted Error Value: White=0.56/Black=0.05 (flawless)} 0-1

[Event "1000GM 0003 GM Norm 2022"]
[Site "Saint Louis"]
[Date "2022.09.21"]
[Round "1.4"]
[White "Williams, Justus"]
[Black "Gedajlovic, Max"]
[Result "1-0"]
[ECO "C50"]
[WhiteElo "2392"]
[BlackElo "2343"]
[Annotator "TA"]
[PlyCount "63"]
[EventDate "2022.09.21"]
[EventType "tourn"]
[EventCountry "USA"]
[SourceTitle "playchess.com"]
[Source "ChessBase"]
[SourceQuality "1"]
[TimeControl "5400+30"]

{[%evp 13,63,2,31,4,40,33,84,16,25,18,25,12,54,69,66,55,62,63,62,74,74,74,71,70,69,57,64,35,48,28,29,27,42,10,37,35,46,45,49,43,23,26,137,134,170,154,183,172,1221,1188,1236,1154]} 1. e4 {[%emt 0:04:14]} e5 {[%emt 0:00:37]} 2. Nf3 {[%emt 0:00:14]} Nc6 {[%emt 0:00:09]} 3. Bc4 {[%emt 0:00:36]} Bc5 {[%emt 0:00:10]} 4. O-O {[%emt 0:01:10]} Nf6 {[%emt 0:00:13]} 5. d3 {[%emt 0:00:30]} O-O {[%emt 0:00:46]} 6. Nc3 {[%emt 0:05:15]} h6 {[%emt 0:06:41]} 7. a3 {[%emt 0:03:29] Recently 7.h3 got a lot of attention.} a6 {[%emt 0:02:42] 7...d6 is vanishing.} 8. b4 {[%emt 0:03:40] C50: Hungarian Defence and Giuoco Pianissimo.} Bd4 {[%emt 0:13:59]} 9. Nxd4 {[%emt 0:03:37]} exd4 {[%emt 0:02:34] [#]} (9... Nxd4 $14 10. f4 d6) 10. Ne2 $146 {[%emt 0:01:02]} ({White should play} 10. Nd5 $16) ({Predecessor:} 10. Nd5 d6 11. Nxf6+ Qxf6 12. Bd2 Qg6 13. g3 Bh3 14. Re1 Ne5 15. f3 Qh5 16. g4 {1-0 (51) Nietzer,I (1237)-Janekovic,V (1526) Regensburg 2011}) 10... d5 $11 {[%emt 0:00:31]} 11. exd5 {[%emt 0:00:45]} Nxd5 {[%emt 0:00:04]} 12. Nf4 {[%emt 0:15:32]} Nxf4 {[%emt 0:17:50]} 13. Bxf4 {[%emt 0:00:26]} Be6 {[%emt 0:00:20]} 14. Bxe6 {[%emt 0:01:52]} fxe6 {[%emt 0:01:32]} 15. Qg4 {[%emt 0:01:09][%csl LRe6,LRh6]} Rf6 {[%emt 0:12:13]} 16. Rae1 {[%emt 0:04:34]} Qd7 {[%emt 0:01:23]} 17. Re4 {[%emt 0:06:41]} Raf8 {[%emt 0:01:18]} 18. Bg3 {[%emt 0:01:50] White is more active.} Rf5 {[%emt 0:05:38]} 19. Qe2 {[%emt 0:01:40]} R8f6 {[%emt 0:02:52]} 20. Re1 {[%emt 0:01:21][%cal Re4e6]} a5 {[%emt 0:01:49]} 21. Qg4 {[%emt 0:07:38]} axb4 {[%emt 0:01:00]} 22. axb4 {[%emt 0:00:03]} Qf7 {[%emt 0:02:52]} 23. Bh4 {[%emt 0:03:27]} g5 {[%emt 0:02:41] [#] aiming for ...h5.} (23... Rg6 $5 {[%cal Rg6g4]} 24. Qe2 Rb5 $11) 24. Bg3 {[%emt 0:04:28]} h5 {[%emt 0:03:00]} 25. Qd1 {[%emt 0:00:30]} h4 {[%emt 0:09:56]} 26. Be5 {[%emt 0:00:27]} Nxe5 {[%emt 0:00:02]} 27. Rxe5 {[%emt 0:00:08]} Kh7 {[%emt 0:03:47] [#]} (27... Rxe5 $11 28. Rxe5 Rxf2) 28. h3 $1 $16 {[%emt 0:04:54]} Rxe5 {[%emt 0:04:38]} 29. Rxe5 {[%emt 0:00:03]} Rf5 {[%emt 0:00:06]} 30. Qe2 {[%emt 0:03:11] Qe4 is the strong threat.} Qf6 $2 {[%emt 0:03:35]} (30... Rxe5 31. Qxe5 Qf4 32. Qxf4 (32. Qxe6 Qc1+ 33. Kh2 Qf4+ 34. Kh1 Qc1+ 35. Kh2 Qf4+ 36. Kh1 Qc1+ 37. Kh2 $11) 32... gxf4) 31. Rxe6 $18 {[%emt 0:00:19]} Qf8 {[%emt 0:00:29]} 32. Qh5+ {[%emt 0:00:41] Weighted Error Value: White=0.11 (very precise) /Black=0.20 (precise)} 1-0

[Event "1000GM 0003 GM Norm 2022"]
[Site "Saint Louis"]
[Date "2022.09.21"]
[Round "1.5"]
[White "Stearman, Josiah"]
[Black "Tugstumur, Yesuntumur"]
[Result "1-0"]
[ECO "E90"]
[WhiteElo "2387"]
[BlackElo "2375"]
[Annotator "TA"]
[PlyCount "81"]
[EventDate "2022.09.21"]
[EventType "tourn"]
[EventCountry "USA"]
[SourceTitle "playchess.com"]
[Source "ChessBase"]
[SourceQuality "1"]
[TimeControl "5400+30"]

{[%evp 21,81,65,70,24,25,13,17,0,0,0,0,0,0,0,0,0,0,0,0,0,24,24,26,25,25,20,26,24,24,0,0,0,0,0,0,0,0,-2,0,0,0,0,0,0,0,-4,0,0,644,644,635,635,641,622,1295,1202,4827,4802,29979,29981,29996,29997]} 1. d4 {[%emt 0:00:04]} Nf6 {[%emt 0:00:08]} 2. c4 {[%emt 0:00:01]} g6 {[%emt 0:00:40]} 3. Nc3 {[%emt 0:00:05]} Bg7 {[%emt 0:00:04]} 4. e4 {[%emt 0:00:04]} d6 {[%emt 0:00:04]} 5. h3 {[%emt 0:00:02]} c5 {[%emt 0:01:36]} 6. d5 {[%emt 0:00:27]} O-O {[%emt 0:00:42]} 7. Nf3 {[%emt 0:00:41]} e6 {[%emt 0:02:12]} 8. Bd3 {[%emt 0:00:05]} exd5 {[%emt 0:00:20]} 9. exd5 {[%emt 0:00:05]} Re8+ {[%emt 0:02:45]} 10. Be3 {[%emt 0:00:05]} Na6 {[%emt 0:03:37]} 11. O-O {[%emt 0:02:25]} Nc7 {[%emt 0:02:20][%cal Ob7b5]} 12. Qd2 {[%emt 0:06:01] E90: King's Indian: Classical: Early deviations and 6 h3.} (12. Qb3 $14) 12... b5 $11 {[%emt 0:05:49] [#] has lost popularity (12...a6).} 13. Bh6 $146 {[%emt 0:05:31]} ({Predecessor:} 13. cxb5 Ncxd5 14. Nxd5 Nxd5 15. Bg5 Qb6 16. Bc4 Nc7 17. Bh6 Be6 18. Bxg7 Kxg7 19. Bxe6 Rxe6 {½-½ (161) Ponkratov,P (2610)-Fedoseev,V (2683) St Petersburg 2015}) 13... bxc4 14. Bxc4 {[%emt 0:00:42] The position is equal.} Ne4 {[%emt 0:17:05]} 15. Nxe4 {[%emt 0:02:13]} Rxe4 {[%emt 0:00:03]} 16. Bxg7 {[%emt 0:01:01]} Kxg7 {[%emt 0:00:07]} 17. b3 {[%emt 0:02:29]} Qf6 {[%emt 0:01:12][%cal Oc8h3]} 18. Qa5 {[%emt 0:08:28]} Bxh3 {[%emt 0:07:33]} 19. Nh2 $1 {[%emt 0:00:11]} ({Avoid the trap} 19. gxh3 $2 Qxf3 20. Rfe1 (20. Qxc7 $2 Qxh3 21. Qxd6 Rg4+ 22. Qg3 Rxg3+ $19) 20... Rae8 21. Rxe4 Rxe4 $19) (19. Qxc7 {[#]} Bxg2 $1 {[%mdl 512]} 20. Nh2 Bf3 21. Qxd6 Qxd6 $19) 19... Bxg2 {[%emt 0:11:51]} 20. Kxg2 {[%emt 0:00:05]} Nxd5 {[%emt 0:01:01][%mdl 64] [#] Decoy} 21. Bxd5 {[%emt 0:02:26]} Qg5+ {[%emt 0:00:02]} 22. Kh1 {[%emt 0:00:10]} Qxd5 {[%emt 0:00:02]} 23. Qc3+ {[%emt 0:00:43]} Rd4+ {[%emt 0:01:04]} 24. Qf3 {[%emt 0:01:29]} Re8 {[%emt 0:01:41]} 25. Rad1 {[%emt 0:00:40]} Ree4 {[%emt 0:10:03]} 26. Rxd4 {[%emt 0:00:15]} cxd4 {[%emt 0:00:14]} 27. Rd1 {[%emt 0:00:44]} h5 {[%emt 0:00:19]} 28. Kg1 {[%emt 0:00:43]} Qe5 {[%emt 0:01:15]} 29. Qg3 {[%emt 0:00:35]} Rf4 {[%emt 0:05:22]} 30. Qd3 {[%emt 0:03:36]} Qf6 {[%emt 0:01:54]} 31. Rd2 {[%emt 0:03:24]} Qg5+ {[%emt 0:01:10]} 32. Kh1 {[%emt 0:06:13]} Rh4 {[%emt 0:01:46]} 33. Re2 {[%emt 0:02:37]} Qf4 {[%emt 0:01:02][%csl Gh4][%cal Rf4h2]} 34. Qg3 {[%emt 0:01:15]} Rxh2+ $2 {[%emt 0:00:14][%mdl 8192]} 35. Kxh2 $18 {[%emt 0:00:15]} Qf6 {[%emt 0:00:53]} 36. f4 {[%emt 0:04:27]} Qf5 {[%emt 0:01:21]} 37. Qf2 {[%emt 0:00:51]} d3 {[%emt 0:01:32]} 38. Qd4+ {[%emt 0:00:04]} f6 {[%emt 0:00:50]} 39. Re8 {[%emt 0:02:00]} Qd7 {[%emt 0:01:06]} 40. Ra8 {[%emt 0:00:13]} Kh6 {[%emt 0:03:48]} 41. Qxf6 {[%emt 0:00:27] Weighted Error Value: White=0.04 (flawless) /Black=0.36} 1-0

[Event "1000GM 0003 GM Norm 2022"]
[Site "Saint Louis"]
[Date "2022.09.23"]
[Round "4.1"]
[White "Raja Harshit"]
[Black "Gedajlovic, Max"]
[Result "1/2-1/2"]
[ECO "C70"]
[WhiteElo "2459"]
[BlackElo "2343"]
[Annotator "TA"]
[PlyCount "29"]
[EventDate "2022.09.21"]
[EventType "tourn"]
[EventCountry "USA"]
[SourceTitle "playchess.com"]
[Source "ChessBase"]
[SourceQuality "1"]
[TimeControl "5400+30"]

{[%evp 9,29,22,44,0,22,0,0,0,0,-16,-21,-24,-16,-18,-6,-6,-6,-10,-8,-9,-10,-12]} 1. e4 {[%emt 0:00:24]} e5 {[%emt 0:00:14]} 2. Nf3 {[%emt 0:00:20]} Nc6 {[%emt 0:00:09]} 3. Bb5 {[%emt 0:00:05]} a6 {[%emt 0:00:28]} 4. Ba4 {[%emt 0:00:06]} Nge7 {[%emt 0:00:10]} 5. Nc3 {[%emt 0:00:14]} d6 {[%emt 0:00:10]} 6. h3 {[%emt 0:06:19] C70: Ruy Lopez: 3...a6 4 Ba4, Norwegian and Delayed Schliemann.} Bd7 {[%emt 0:01:39]} 7. a3 {[%emt 0:01:24] [#]} Nd4 $146 {[%emt 0:03:50]} ({Predecessor:} 7... h6 8. d4 Nxd4 9. Bxd7+ Qxd7 10. Nxd4 exd4 11. Qxd4 Nc6 12. Qd3 g6 13. Nd5 Bg7 {1-0 (32) Nikolova,A (2303)-Cornette,D (2405) Plovdiv 2014}) 8. Bxd7+ {[%emt 0:01:37]} Qxd7 {[%emt 0:00:14]} 9. d3 {[%emt 0:02:36]} g6 {[%emt 0:02:55]} 10. Bg5 {[%emt 0:02:47]} Bg7 {[%emt 0:02:36]} 11. Bxe7 {[%emt 0:00:33] The position is equal.} Nxf3+ {[%emt 0:05:06]} 12. Qxf3 {[%emt 0:00:13] [#] aiming for Bf6.} Qxe7 {[%emt 0:00:07]} 13. Nd5 {[%emt 0:00:33]} Qd8 {[%emt 0:00:31]} 14. h4 {[%emt 0:02:15]} h5 {[%emt 0:01:29]} 15. O-O-O {[%emt 0:02:50] A rather calm draw.  Weighted Error Value: White=0.10 (very precise) /Black=0.05 (flawless)} 1/2-1/2

[Event "1000GM 0003 GM Norm 2022"]
[Site "Saint Louis"]
[Date "2022.09.23"]
[Round "4.2"]
[White "Antipov, Mikhail Al."]
[Black "Tugstumur, Yesuntumur"]
[Result "1-0"]
[ECO "B50"]
[WhiteElo "2603"]
[BlackElo "2375"]
[Annotator "TA"]
[PlyCount "101"]
[EventDate "2022.09.21"]
[EventType "tourn"]
[EventCountry "USA"]
[SourceTitle "playchess.com"]
[Source "ChessBase"]
[SourceQuality "1"]
[TimeControl "5400+30"]

{[%evp 10,101,24,24,38,35,39,31,43,31,37,37,52,43,45,0,46,50,64,62,65,41,73,67,71,62,65,25,25,25,25,26,22,20,8,13,39,33,38,0,0,0,0,0,0,0,0,0,142,144,133,129,122,136,245,269,268,240,324,325,313,327,352,344,401,354,399,370,313,282,471,475,544,511,670,648,686,680,727,733,891,811,1301,1264,1273,1241,2756,2875,29971,29969,29968,29962,12843,5418]} 1. e4 {[%emt 0:02:25]} c5 {[%emt 0:00:20]} 2. Nf3 {[%emt 0:00:11]} e6 {[%emt 0:00:11]} 3. b3 {[%emt 0:00:04]} d6 {[%emt 0:02:32]} 4. d4 {[%emt 0:00:25]} cxd4 {[%emt 0:00:41]} 5. Nxd4 {[%emt 0:00:04]} Nf6 {[%emt 0:01:07]} 6. Bd3 {[%emt 0:01:08]} e5 {[%emt 0:01:06] B50: Sicilian: 2...d6, Miscellaneous.} 7. Nf3 {[%emt 0:00:44]} Be7 {[%emt 0:00:50]} 8. O-O {[%emt 0:01:02]} O-O {[%emt 0:00:49] White is slightly better.} 9. c4 {[%emt 0:00:14] [#] Inhibits d5.} Na6 $146 {[%emt 0:03:17]} ({Predecessor:} 9... Nc6 10. Nc3 Ne8 11. a3 g6 12. b4 Bg4 13. Nd5 Ng7 14. Bb2 Ne6 15. Be2 Bxf3 16. Bxf3 {1-0 (35) Georgiev,B (2335)-Martidis,A (2285) Athens 1989}) 10. Nc3 {[%emt 0:02:36]} Bg4 {[%emt 0:03:24]} 11. h3 {[%emt 0:01:08]} Bh5 {[%emt 0:01:02]} 12. Bg5 {[%emt 0:06:04]} Ne8 {[%emt 0:03:47]} (12... Nc5 $11 {feels stronger.}) 13. Be3 $14 {[%emt 0:01:27]} Bxf3 {[%emt 0:00:52]} 14. Qxf3 {[%emt 0:00:06]} Bg5 {[%emt 0:00:16]} 15. Rfd1 {[%emt 0:07:22] White has more active pieces.} Nec7 {[%emt 0:05:42]} 16. Be2 {[%emt 0:06:07]} Bxe3 {[%emt 0:09:08]} 17. Qxe3 {[%emt 0:00:12]} Qe7 {[%emt 0:00:58]} 18. Nd5 {[%emt 0:06:36]} Nxd5 {[%emt 0:02:42]} 19. cxd5 {[%emt 0:00:04]} Nc5 {[%emt 0:01:09][%cal Ba6c5,Bc5d7,Bd7f6][%mdl 32]} 20. b4 {[%emt 0:00:22]} Nd7 {[%emt 0:01:06]} 21. Rdc1 {[%emt 0:02:20] Rc7 is the strong threat.} Qd8 {[%emt 0:02:06] Prevents Rc7.} 22. Bb5 {[%emt 0:12:23]} Nf6 {[%emt 0:06:01]} 23. Rc2 {[%emt 0:06:11]} a5 {[%emt 0:03:35]} 24. bxa5 {[%emt 0:00:59]} Qxa5 {[%emt 0:02:14]} 25. a4 {[%emt 0:03:54]} Rfc8 {[%emt 0:01:31]} 26. Rac1 {[%emt 0:00:06][%cal Ba1c1,Bc1c2,Bc2c4,Bc4c7][%mdl 32]} Rxc2 {[%emt 0:00:53]} 27. Rxc2 {[%emt 0:00:01]} Qd8 {[%emt 0:00:29]} 28. Rc4 {[%emt 0:03:03]} Rc8 {[%emt 0:02:08] [#] Black is now going downhill.} (28... h5 $11 {remains equal.}) 29. Qb6 $3 $16 {[%emt 0:01:48][%mdl 512]} Rb8 {[%emt 0:05:44]} 30. Qxd8+ {[%emt 0:01:23]} Rxd8 {[%emt 0:00:04][%mdl 4096] Endgame KRB-KRN} 31. f3 {[%emt 0:00:05]} h5 {[%emt 0:15:31]} (31... Ne8 $16) 32. Rc7 $18 {[%emt 0:01:35]} Rb8 {[%emt 0:00:03]} 33. h4 {[%emt 0:01:01]} Kf8 {[%emt 0:00:28]} 34. Kf2 {[%emt 0:00:49]} Ne8 {[%emt 0:03:14] [#]} 35. Rd7 {[%emt 0:03:35]} g6 {[%emt 0:00:56]} 36. Ke3 {[%emt 0:01:40]} Kg7 {[%emt 0:02:54]} 37. Kd3 {[%emt 0:01:53]} Kf8 {[%emt 0:01:28]} 38. Kd2 {[%emt 0:02:53]} f5 {[%emt 0:01:57]} 39. Kd3 {[%emt 0:00:10]} Kg8 $2 {[%emt 0:00:30]} (39... Ra8 {keeps fighting.} 40. exf5 (40. Rxb7 Nf6 $18) 40... gxf5) 40. Re7 {[%emt 0:00:35]} Ng7 {[%emt 0:00:18]} 41. Rc7 {[%emt 0:01:54]} Kf8 {[%emt 0:03:52]} 42. Kc4 {[%emt 0:00:26]} Kg8 {[%emt 0:00:41]} 43. Kb4 {[%emt 0:00:35]} g5 {[%emt 0:01:24]} 44. hxg5 {[%emt 0:00:43][%cal Bh4g5,Bg5g6][%mdl 32]} fxe4 {[%emt 0:00:03]} 45. fxe4 {[%emt 0:00:05]} h4 {[%emt 0:00:15]} 46. Bd7 {[%emt 0:00:32]} Rf8 {[%emt 0:01:13]} 47. g6 {[%emt 0:00:09]} Rf2 {[%emt 0:01:48]} 48. Rc8+ {[%emt 0:01:03]} Rf8 {[%emt 0:00:04]} 49. a5 {[%emt 0:00:23]} Nh5 {[%emt 0:00:19]} 50. Rxf8+ {[%emt 0:00:38]} Kxf8 {[%emt 0:00:04] [#]} 51. Bc8 {[%emt 0:00:05] Weighted Error Value: White=0.05 (flawless) /Black=0.43} (51. Bc6 $142 $1 {[%mdl 512]} Nf6 (51... Nf4 52. Bxb7) 52. Bxb7) 1-0